bitfinex/quotes_SOLUSD_20250130
["timestamp","ask_amount","ask_price","bid_price","bid_amount"]
[1738212928454,0.063,241.17,241.11,12.38403794]
[1738212929752,0.063,241.17,241.12,12.38403794]
[1738212930868,0.063,241.17,241.09,0.03]
[1738212930869,0.063,241.17,241.13,12.38403794]
[1738212931073,0.063,241.17,241.12,12.38403794]
[1738212933951,0.063,241.17,241.14,12.38403794]
[1738212934765,0.063,241.17,241.12,12.38403794]
[1738212934969,0.063,241.17,241.1,12.38403794]
[1738212936549,0.063,241.17,241.11,7.92961373]
[1738212941080,7.99261373,241.17,241.09,7.95961373]
[1738212941246,0.063,241.17,241.12,7.92961373]
[1738212943279,0.063,241.17,241.15,7.92961373]
[1738212943653,0.063,241.17,241.16,7.92961373]
[1738212943860,7.68110373,241.23,241.15,7.92961373]
[1738212944364,7.92961373,241.22,241.15,7.92961373]
[1738212944578,27.92961373,241.23,241.15,7.92961373]
[1738212945972,7.92961373,241.22,241.15,7.92961373]
[1738212946195,7.92961373,241.22,241.14,7.92961373]
[1738212946388,7.92961373,241.21,241.13,7.92961373]
[1738212946590,20.0,241.23,241.09,23.932374]
[1738212946591,7.92961373,241.19,241.12,7.92961373]
[1738212947563,7.92961373,241.21,241.14,7.92961373]
[1738212947967,7.92961373,241.2,241.13,7.92961373]
[1738212949086,7.92961373,241.2,241.11,7.92961373]
[1738212949976,4.1458,241.21,241.09,0.03]
[1738212949977,7.92961373,241.17,241.1,7.92961373]
[1738212950177,7.92961373,241.16,241.09,7.95961373]
[1738212951071,7.92961373,241.17,241.1,7.92961373]
[1738212952995,7.92961373,241.18,241.1,7.92961373]
[1738212953160,7.92961373,241.19,241.11,7.92961373]
[1738212954583,83.0,241.21,241.13,7.92961373]
[1738212957299,83.0,241.21,241.15,7.92961373]
[1738212958886,83.0,241.21,241.18,7.92961373]
[1738212959064,0.063,241.22,241.17,7.92961373]
[1738212959264,0.063,241.22,241.16,7.92961373]
[1738212960669,0.063,241.22,241.15,7.92961373]
[1738212960869,7.99261373,241.22,241.15,7.92961373]
[1738212961181,7.92961373,241.19,241.13,0.03]
[1738212961381,0.063,241.22,241.13,0.03]
[1738212961382,7.92961373,241.15,241.13,0.03]
[1738212961579,7.92961373,241.14,241.13,0.03]
[1738212961964,8.30608373,241.14,241.13,0.03]
[1738212962399,7.92961373,241.14,241.13,0.03]
[1738212962691,9.51031373,241.16,241.13,0.03]
[1738212963104,14.20921373,241.17,241.13,0.03]
[1738212963463,7.92961373,241.17,241.13,0.03]
[1738212963997,90.92961373,241.19,241.13,0.03]
[1738212964202,7.9772,241.22,241.15,7.92961373]
[1738212964501,7.9772,241.22,241.13,0.03]
[1738212964502,0.063,241.22,241.16,7.92961373]
[1738212967692,0.063,241.22,241.18,7.92961373]
[1738212967883,0.063,241.22,241.19,7.92961373]
[1738212968289,0.063,241.22,241.18,7.92961373]
[1738212969599,0.063,241.22,241.17,7.92961373]
[1738212969799,0.063,241.22,241.16,7.92961373]
[1738212969979,0.063,241.22,241.17,7.92961373]
[1738212970771,0.063,241.22,241.18,7.92961373]
[1738212971192,0.063,241.22,241.19,7.92961373]
[1738212972094,0.063,241.22,241.2,7.92961373]
[1738212973285,0.063,241.22,241.21,7.92961373]
[1738212974403,0.063,241.28,241.25,20.0]
[1738212974612,0.063,241.28,241.27,31.83198773]
[1738212975401,0.063,241.28,241.27,31.95747773]
[1738212976014,0.063,241.32,241.31,24.027864]
[1738212976306,0.063,241.32,241.31,64.54829051]
[1738212976506,0.063,241.34,241.33,20.0]
[1738212976713,0.063,241.34,241.33,28.55094339]
[1738212977007,0.063,241.34,241.33,27.92961373]
[1738212977581,0.063,241.34,241.31,7.92961373]
[1738212977782,0.063,241.34,241.29,7.92961373]
[1738212977999,0.063,241.34,241.31,7.92961373]
[1738212978182,0.063,241.34,241.29,20.0]
[1738212978183,0.063,241.34,241.32,7.92961373]
[1738212978813,0.063,241.34,241.31,7.92961373]
[1738212978997,0.063,241.34,241.33,7.92961373]
[1738212980613,0.063,241.34,241.33,12.36278306]
[1738212980816,0.063,241.34,241.33,32.36278306]
[1738212990516,0.063,241.34,241.33,12.36278306]
[1738212993260,0.063,241.34,241.32,0.063]
[1738212993831,0.063,241.34,241.33,12.36278306]
[1738212994741,0.063,241.34,241.32,12.42578306]
[1738212997218,0.063,241.34,241.32,0.063]
[1738213005950,0.063,241.34,241.32,7.97919195]
[1738213008283,0.063,241.34,241.33,7.91619195]
[1738213008557,0.063,241.34,241.32,7.97919195]
[1738213010259,0.063,241.34,241.33,7.91619195]
[1738213015361,0.063,241.34,241.33,32.56542695]
[1738213015868,0.063,241.34,241.32,9.59019195]
[1738213016576,0.063,241.34,241.32,41.25495975]
[1738213017380,0.063,241.34,241.32,9.59019195]
[1738213017976,0.063,241.34,241.33,23.902374]
[1738213018673,7.97919195,241.34,241.32,0.063]
[1738213018883,0.25098,241.33,241.32,0.063]
[1738213019377,12.12279195,241.34,241.32,0.063]
[1738213020574,0.25098,241.33,241.32,0.063]
[1738213021076,12.12279195,241.34,241.32,0.063]
[1738213023577,7.97919195,241.34,241.32,0.063]
[1738213023760,0.063,241.34,241.32,0.063]
[1738213025083,0.063,241.34,241.32,7.97919195]
[1738213027669,0.063,241.34,241.33,23.776884]
[1738213028170,0.063,241.34,241.32,7.97919195]
[1738213029261,0.063,241.34,241.33,23.776884]
[1738213029886,0.063,241.34,241.32,7.97919195]
[1738213030085,0.063,241.34,241.33,23.776884]
[1738213030585,0.063,241.34,241.33,24.90021506]
[1738213031761,0.063,241.38,241.36,20.0]
[1738213032100,0.063,241.38,241.37,32.81624606]
[1738213033177,0.063,241.38,241.37,32.56526606]
[1738213034085,0.063,241.38,241.37,32.43977606]
[1738213034471,0.063,241.38,241.37,32.81624606]
[1738213034682,0.063,241.38,241.37,37.25670898]
[1738213035662,0.063,241.38,241.37,38.25670898]
[1738213036762,0.063,241.38,241.37,39.89300898]
[1738213037968,0.063,241.42,241.41,21.50196]
[1738213038188,0.063,241.42,241.41,58.25652578]
[1738213039474,0.063,241.42,241.41,70.61318065]
[1738213039785,0.063,241.42,241.41,58.25652578]
[1738213042083,0.063,241.42,241.41,56.63549887]
[1738213042279,0.063,241.42,241.41,32.48214487]
[1738213042584,0.063,241.42,241.41,12.35665487]
[1738213043561,0.063,241.42,241.41,36.13353887]
[1738213043984,0.063,241.42,241.41,36.25902887]
[1738213044771,0.063,241.42,241.41,37.25663676]
[1738213045087,0.063,241.47,241.46,24.278844]
[1738213045283,0.063,241.47,241.46,37.2563778]
[1738213045972,0.063,241.47,241.46,36.63549887]
[1738213046174,12.41965487,241.47,241.38,12.41965487]
[1738213046379,12.35665487,241.44,241.38,0.063]
[1738213047372,12.35665487,241.4,241.38,0.063]
[1738213049567,1.5992,241.39,241.38,0.063]
[1738213049773,1.72469,241.39,241.38,0.063]
[1738213051192,0.12549,241.38,241.32,0.063]
[1738213051373,12.35665487,241.33,241.32,0.063]
[1738213053379,22.98795487,241.33,241.32,0.063]
[1738213054095,23.11344487,241.33,241.32,0.063]
[1738213055191,23.36442487,241.33,241.32,0.063]
[1738213055999,18.84425487,241.33,241.32,0.063]
[1738213056873,19.22072487,241.33,241.32,0.063]
[1738213057187,44.12309887,241.33,241.32,0.063]
[1738213058274,43.12309887,241.33,241.32,0.063]
[1738213058808,44.12309887,241.33,241.32,0.063]
[1738213060475,45.12309887,241.33,241.32,0.063]
[1738213060674,57.47975374,241.33,241.32,0.063]
[1738213060997,45.12309887,241.33,241.32,0.063]
[1738213061304,44.12309887,241.33,241.32,0.063]
[1738213061497,43.12309887,241.33,241.32,0.063]
[1738213061901,19.34621487,241.33,241.32,0.063]
[1738213062100,19.22072487,241.33,241.32,0.063]
[1738213062597,19.34621487,241.33,241.32,0.063]
[1738213063804,19.22072487,241.33,241.32,0.063]
[1738213065692,12.73312487,241.33,241.32,0.063]
[1738213066381,36.63549887,241.33,241.32,0.063]
[1738213067209,49.99215374,241.33,241.32,0.063]
[1738213067408,0.12549,241.26,241.15,12.35665487]
[1738213067614,12.35665487,241.22,241.15,12.35665487]
[1738213068091,12.35665487,241.21,241.14,1.6092]
[1738213068281,12.35665487,241.23,241.15,12.35665487]
[1738213068601,12.35665487,241.28,241.21,12.35665487]
[1738213068799,12.35665487,241.3,241.23,12.35665487]
[1738213069000,12.35665487,241.31,241.23,12.35665487]
[1738213069306,12.35665487,241.3,241.23,12.35665487]
[1738213069709,12.35665487,241.29,241.22,12.35665487]
[1738213070003,6.37719,241.34,241.17,0.063]
[1738213070004,12.35665487,241.33,241.25,12.35665487]
[1738213070388,12.35665487,241.34,241.26,12.35665487]
[1738213070818,12.35665487,241.35,241.27,12.35665487]
[1738213072004,12.35665487,241.37,241.3,12.35665487]
[1738213072308,12.35665487,241.35,241.27,12.35665487]
[1738213072508,12.38665487,241.38,241.3,12.35665487]
[1738213073006,16.52955487,241.38,241.3,12.35665487]
[1738213073313,12.35665487,241.36,241.29,12.35665487]
[1738213073604,12.35665487,241.36,241.27,12.35665487]
[1738213073808,12.35665487,241.34,241.26,32.35665487]
[1738213074017,12.35665487,241.32,241.25,13.85905487]
[1738213074508,12.35665487,241.35,241.28,12.35665487]
[1738213075422,0.15549,241.38,241.23,12.35665487]
[1738213075423,12.35665487,241.3,241.23,12.35665487]
[1738213075588,12.35665487,241.32,241.23,12.35665487]
[1738213075796,12.35665487,241.3,241.23,12.35665487]
[1738213076115,12.35665487,241.31,241.24,12.35665487]
[1738213077215,12.35665487,241.33,241.24,12.35665487]
[1738213078991,83.0,241.34,241.2,2.9]
[1738213078992,83.0,241.34,241.29,12.35665487]
[1738213079302,12.38665487,241.38,241.29,12.35665487]
[1738213079917,12.35665487,241.36,241.29,12.35665487]
[1738213080799,12.38665487,241.38,241.29,12.35665487]
[1738213081005,12.38665487,241.38,241.31,12.35665487]
[1738213082012,0.03,241.38,241.35,12.35665487]
[1738213082222,0.03,241.38,241.37,12.35665487]
[1738213084906,0.03,241.38,241.35,12.35665487]
[1738213085714,0.03,241.38,241.37,12.35665487]
[1738213085899,0.03,241.38,241.37,36.25902887]
[1738213086099,0.03,241.38,241.37,36.38451887]
[1738213086496,0.03,241.38,241.36,12.35665487]
[1738213086911,0.03,241.38,241.37,12.35665487]
[1738213088724,0.03,241.38,241.36,12.35665487]
[1738213089808,0.03,241.38,241.37,12.35665487]
[1738213090215,0.03,241.38,241.36,12.35665487]
[1738213090416,0.03,241.38,241.37,12.35665487]
[1738213090731,0.03,241.38,241.36,12.35665487]
[1738213091028,0.03,241.38,241.37,12.35665487]
[1738213093023,0.03,241.38,241.37,12.60763487]
[1738213094218,0.03,241.38,241.37,12.85861487]
[1738213094732,0.03,241.38,241.37,13.47976533]
[1738213096834,0.03,241.38,241.37,37.25664933]
[1738213097501,0.03,241.38,241.37,36.63549887]
[1738213098432,0.03,241.38,241.37,12.48214487]
[1738213098739,0.03,241.38,241.37,39.13902887]
[1738213100312,0.03,241.38,241.37,39.26451887]
[1738213101748,0.03,241.38,241.37,39.51549887]
[1738213102035,0.03,241.38,241.37,40.51549887]
[1738213102613,0.03,241.38,241.37,39.51549887]
[1738213103937,0.03,241.38,241.37,36.63549887]
[1738213104139,0.03,241.38,241.37,39.51549887]
[1738213104337,0.03,241.38,241.37,39.26451887]
[1738213105855,0.03,241.38,241.37,39.13902887]
[1738213106041,0.03,241.38,241.37,39.01353887]
[1738213107529,0.03,241.38,241.37,12.35665487]
[1738213107837,0.03,241.38,241.36,12.35665487]
[1738213109234,0.03,241.38,241.33,12.35665487]
[1738213109446,0.03,241.38,241.32,2.943]
[1738213110336,0.03,241.38,241.32,0.063]
[1738213110844,12.35665487,241.37,241.32,0.063]
[1738213113537,13.90405487,241.35,241.32,0.063]
[1738213113729,12.35665487,241.33,241.32,0.063]
[1738213114043,18.96725487,241.34,241.32,0.063]
[1738213114921,6.6106,241.34,241.32,0.063]
[1738213116250,1.5474,241.35,241.32,0.063]
[1738213116947,0.03,241.38,241.32,12.41965487]
[1738213117941,12.35665487,241.37,241.32,0.063]
[1738213118144,12.35665487,241.36,241.32,0.063]
[1738213118756,12.35665487,241.35,241.32,0.063]
[1738213119347,12.35665487,241.36,241.32,0.063]
[1738213119653,12.35665487,241.35,241.32,0.063]
[1738213120157,12.35665487,241.33,241.32,0.063]
[1738213120957,83.0,241.35,241.32,0.063]
[1738213120958,12.35665487,241.34,241.32,0.063]
[1738213123744,95.35665487,241.35,241.32,0.063]
[1738213124254,12.35665487,241.33,241.32,0.063]
[1738213129356,13.73312487,241.33,241.32,0.063]
[1738213129851,51.45156374,241.33,241.32,0.063]
[1738213130351,39.09490887,241.33,241.32,0.063]
[1738213130543,72.62919845,241.33,241.32,0.063]
[1738213131429,72.62919845,241.33,241.29,0.063]
[1738213131430,46.153354,241.3,241.29,0.063]
[1738213131629,54.07834289,241.3,241.29,0.063]
[1738213132254,1.37647,241.25,241.17,0.063]
[1738213132442,7.92498889,241.19,241.17,0.063]
[1738213132643,12.38968394,241.19,241.17,0.063]
[1738213138261,83.0,241.24,241.17,0.063]
[1738213138262,12.38968394,241.22,241.17,0.063]
[1738213139358,83.0,241.24,241.17,0.063]
[1738213139359,12.38968394,241.2,241.17,0.063]
[1738213139547,12.38968394,241.19,241.17,0.063]
[1738213139748,12.38968394,241.18,241.17,0.063]
[1738213140458,12.64066394,241.18,241.17,0.063]
[1738213142664,12.38968394,241.18,241.17,0.063]
[1738213144065,12.38968394,241.19,241.17,0.063]
[1738213144368,83.0,241.2,241.17,0.063]
[1738213144540,7.9917,241.23,241.17,0.063]
[1738213144541,12.38968394,241.23,241.17,0.063]
[1738213144859,83.0,241.25,241.18,12.38968394]
[1738213145354,83.0,241.25,241.2,12.38968394]
[1738213145542,95.38968394,241.25,241.18,12.38968394]
[1738213145744,83.0,241.25,241.2,12.38968394]
[1738213145943,83.0,241.25,241.24,12.38968394]
[1738213146164,83.0,241.32,241.24,12.38968394]
[1738213146352,83.0,241.32,241.27,12.38968394]
[1738213146666,95.38968394,241.32,241.25,12.38968394]
[1738213146867,83.0,241.32,241.27,12.38968394]
[1738213148369,83.0,241.32,241.28,12.38968394]
[1738213148870,83.0,241.32,241.27,12.38968394]
[1738213149172,83.0,241.32,241.21,13.90288394]
[1738213149173,12.38968394,241.29,241.21,13.90288394]
[1738213149674,12.38968394,241.3,241.22,12.38968394]
[1738213149870,12.38968394,241.3,241.23,12.38968394]
[1738213150079,83.0,241.32,241.26,12.38968394]
[1738213150245,83.0,241.32,241.27,12.38968394]
[1738213150449,95.38968394,241.32,241.24,12.38968394]
[1738213150658,95.38968394,241.32,241.25,12.38968394]
[1738213151042,95.38968394,241.32,241.24,12.38968394]
[1738213151261,12.38968394,241.31,241.24,12.38968394]
[1738213151454,95.38968394,241.32,241.25,12.38968394]
[1738213151664,83.0,241.32,241.26,12.38968394]
[1738213152169,95.38968394,241.32,241.25,12.45268394]
[1738213152348,12.38968394,241.31,241.25,0.063]
[1738213153067,95.38968394,241.32,241.25,12.45268394]
[1738213154070,12.38968394,241.31,241.25,0.063]
[1738213156453,12.38968394,241.28,241.25,0.063]
[1738213156768,12.76615394,241.26,241.25,0.063]
[1738213160473,36.54303794,241.26,241.25,0.063]
[1738213160771,37.54303794,241.26,241.25,0.063]
[1738213163182,0.12549,241.19,241.17,0.063]
[1738213163474,12.64066394,241.18,241.17,0.063]
[1738213163856,12.76615394,241.18,241.17,0.063]
[1738213165474,16.91235394,241.18,241.17,0.063]
[1738213166966,12.76615394,241.18,241.17,0.063]
[1738213168158,36.54303794,241.18,241.17,0.063]
[1738213168760,12.76615394,241.18,241.17,0.063]
[1738213169355,12.38968394,241.19,241.17,0.063]
[1738213169766,12.38968394,241.21,241.17,0.063]
[1738213171387,12.38968394,241.19,241.17,0.063]
[1738213172565,7.92880591,241.2,241.17,0.063]
[1738213173084,8.05429591,241.22,241.17,0.063]
[1738213174882,7.92880591,241.2,241.17,0.063]
[1738213175889,7.92880591,241.18,241.17,0.063]
[1738213176790,8.30527591,241.18,241.17,0.063]
[1738213177085,32.08215991,241.18,241.17,0.063]
[1738213180393,8.30527591,241.18,241.17,0.063]
[1738213181391,18.5331,241.26,241.17,0.063]
[1738213181392,7.92880591,241.2,241.17,0.063]
[1738213181565,7.92880591,241.22,241.17,0.063]
[1738213181763,7.92880591,241.19,241.17,0.063]
[1738213182485,7.92880591,241.21,241.17,0.063]
[1738213182690,12.3871428,241.21,241.17,0.063]
[1738213187494,12.3871428,241.19,241.17,0.063]
[1738213187795,12.7636128,241.18,241.17,0.063]
[1738213187976,36.5404968,241.18,241.17,0.063]
[1738213188178,40.6866968,241.18,241.17,0.063]
[1738213189101,41.6866968,241.18,241.17,0.063]
[1738213189400,42.6866968,241.18,241.17,0.063]
[1738213189601,33.7636128,241.15,241.14,0.063]
[1738213189803,57.5404968,241.15,241.14,0.063]
[1738213190694,56.5404968,241.15,241.14,0.063]
[1738213191401,60.6871968,241.15,241.14,0.063]
[1738213191579,36.9103128,241.15,241.14,0.063]
[1738213191781,60.6871968,241.15,241.14,0.063]
[1738213191981,61.6871968,241.15,241.14,0.063]
[1738213193292,24.153354,241.14,241.13,0.03]
[1738213193603,36.5404968,241.14,241.13,0.03]
[1738213198896,38.22843584,241.14,241.13,0.03]
[1738213199786,36.5404968,241.14,241.13,0.03]
[1738213200203,12.7636128,241.14,241.13,0.03]
[1738213200416,12.3871428,241.16,241.13,0.03]
[1738213200910,12.5126328,241.15,241.13,0.03]
[1738213201121,0.25098,241.18,241.13,0.03]
[1738213201122,12.7636128,241.14,241.13,0.03]
[1738213201900,12.5126328,241.14,241.13,0.03]
[1738213203020,12.3871428,241.16,241.13,0.03]
[1738213203201,12.3871428,241.17,241.13,0.03]
[1738213204095,12.3871428,241.18,241.13,0.03]
[1738213204297,12.3871428,241.19,241.13,0.03]
[1738213204920,12.3871428,241.18,241.13,0.03]
[1738213205720,12.3871428,241.19,241.13,0.03]
[1738213205948,0.12549,241.21,241.13,12.4171428]
[1738213206094,12.3871428,241.2,241.13,0.03]
[1738213206520,12.3871428,241.16,241.13,0.03]
[1738213207244,12.3871428,241.17,241.13,0.03]
[1738213207447,12.3871428,241.19,241.13,0.03]
[1738213208643,12.3871428,241.17,241.13,0.03]
[1738213209221,12.3871428,241.18,241.13,0.03]
[1738213209425,12.3871428,241.19,241.13,0.03]
[1738213210137,12.3871428,241.2,241.13,0.03]
[1738213210744,83.0,241.17,241.13,12.4171428]
[1738213210917,83.0,241.17,241.15,12.3871428]
[1738213211954,83.0,241.17,241.14,12.3871428]
[1738213212248,83.0,241.17,241.15,0.063]
[1738213213628,83.0,241.17,241.16,7.92860591]
[1738213213827,83.0,241.23,241.17,1.5704]
[1738213214027,83.0,241.23,241.22,7.92860591]
[1738213214624,83.0,241.23,241.21,7.92860591]
[1738213215240,83.0,241.23,241.18,7.92860591]
[1738213215551,83.0,241.22,241.17,1.5704]
[1738213215851,83.0,241.21,241.18,7.92860591]
[1738213216051,83.0,241.21,241.2,7.92860591]
[1738213216520,0.03,241.25,241.2,12.37800734]
[1738213216730,0.03,241.25,241.24,12.37800734]
[1738213216940,0.03,241.25,241.23,12.37800734]
[1738213217332,0.03,241.25,241.21,12.37800734]
[1738213217640,0.03,241.25,241.19,12.37800734]
[1738213217835,83.0,241.24,241.2,12.37800734]
[1738213218025,83.0,241.24,241.18,12.37800734]
[1738213218222,83.0,241.24,241.17,13.94840734]
[1738213218955,95.37800734,241.24,241.17,13.94840734]
[1738213219328,83.0,241.24,241.17,13.94840734]
[1738213219517,95.37800734,241.24,241.17,13.94840734]
[1738213220022,83.0,241.23,241.17,13.94840734]
[1738213220245,95.37800734,241.23,241.17,1.5704]
[1738213220725,12.37800734,241.22,241.17,1.5704]
[1738213221559,12.37800734,241.21,241.17,1.5704]
[1738213222055,12.50349734,241.2,241.15,0.063]
[1738213222262,12.37800734,241.17,241.15,0.063]
[1738213222959,12.37800734,241.18,241.15,0.063]
[1738213223162,83.0,241.19,241.15,0.063]
[1738213223736,95.37800734,241.19,241.15,0.063]
[1738213223948,12.37800734,241.17,241.15,0.063]
[1738213224139,12.37800734,241.16,241.15,0.063]
[1738213224556,0.03,241.17,241.15,0.063]
[1738213227037,0.03,241.17,241.16,12.37800734]
[1738213227236,12.40800734,241.17,241.15,0.063]
[1738213227430,12.37800734,241.16,241.15,0.063]
[1738213227660,0.03,241.17,241.15,0.063]
[1738213228737,83.0,241.16,241.15,0.063]
[1738213230957,0.03,241.17,241.15,12.44100734]
[1738213231974,0.03,241.17,241.15,0.063]
[1738213233039,12.37800734,241.16,241.15,0.063]
[1738213233855,12.50349734,241.16,241.15,0.063]
[1738213236464,0.03,241.17,241.15,0.063]
[1738213237256,0.03,241.17,241.16,12.37800734]
[1738213237458,0.03,241.17,241.16,14.00570734]
[1738213239642,0.03,241.17,241.15,12.44100734]
[1738213240271,0.03,241.17,241.15,0.063]
[1738213243480,83.0,241.16,241.15,0.063]
[1738213245766,83.0,241.16,241.15,12.44100734]
[1738213249448,83.03,241.16,241.15,12.44100734]
[1738213250587,83.03,241.16,241.15,0.063]
[1738213251686,83.03,241.16,241.15,12.44100734]
[1738213253975,0.03,241.16,241.15,12.44100734]
[1738213255969,0.03,241.16,241.15,36.21789134]
[1738213256694,0.03,241.16,241.15,36.34338134]
[1738213256853,0.03,241.16,241.15,37.71985134]
[1738213257058,0.03,241.17,241.15,37.71985134]
[1738213257059,0.03,241.23,241.19,23.776884]
[1738213257256,0.03,241.23,241.22,12.37800734]
[1738213258069,0.03,241.23,241.22,36.15489134]
[1738213258676,0.03,241.23,241.22,12.37800734]
[1738213260274,0.03,241.23,241.22,36.15489134]
[1738213260673,0.03,241.23,241.22,12.37800734]
[1738213263094,0.03,241.23,241.22,36.15489134]
[1738213263302,0.03,241.23,241.22,36.28038134]
[1738213266487,0.03,241.23,241.22,36.65685134]
[1738213266793,0.03,241.25,241.24,12.50349734]
[1738213266976,0.03,241.25,241.24,13.12510081]
[1738213269303,0.03,241.29,241.28,23.902374]
[1738213269498,0.03,241.29,241.28,32.50349734]
[1738213269804,0.03,241.29,241.28,57.65685134]
[1738213269984,0.03,241.38,241.33,0.12549]
[1738213270188,0.03,241.38,241.36,56.15489134]
[1738213270686,0.03,241.38,241.36,12.37800734]
[1738213270996,0.03,241.38,241.35,12.37800734]
[1738213271189,0.03,241.38,241.34,15.25800734]
[1738213272501,0.03,241.38,241.35,12.37800734]
[1738213272700,0.03,241.38,241.36,12.37800734]
[1738213275585,0.11548787,241.37,241.36,12.37800734]
[1738213280929,0.11548787,241.37,241.36,36.15489134]
[1738213283527,0.11548787,241.37,241.36,36.28038134]
[1738213283694,0.11548787,241.37,241.36,36.90168107]
[1738213284203,0.11548787,241.37,241.36,37.15266107]
[1738213284518,0.08831303,241.46,241.42,0.50196]
[1738213284711,0.03,241.5,241.43,2.0]
[1738213284899,0.03,241.5,241.49,20.0]
[1738213285210,0.03,241.5,241.49,32.37800734]
[1738213285712,0.03,241.5,241.49,12.37800734]
[1738213287818,0.03,241.5,241.49,36.15489134]
[1738213288010,0.03,241.5,241.49,36.28038134]
[1738213289906,0.03,241.5,241.49,36.53136134]
[1738213290108,83.0,241.61,241.54,20.0]
[1738213290307,83.0,241.61,241.57,12.37800734]
[1738213291321,83.0,241.61,241.51,23.776884]
[1738213291322,83.0,241.61,241.59,12.37800734]
[1738213291511,7.7479,241.62,241.6,12.37800734]
[1738213291512,0.03,241.62,241.6,12.37800734]
[1738213291713,0.03,241.62,241.61,12.37800734]
[1738213292536,0.03,241.62,241.61,36.15489134]
[1738213295622,0.1080432,241.62,241.61,36.15489134]
[1738213295823,12.48605054,241.62,241.55,12.37800734]
[1738213296231,12.48605054,241.62,241.54,12.37800734]
[1738213296611,12.37800734,241.61,241.54,12.37800734]
[1738213296813,12.48605054,241.62,241.54,12.37800734]
[1738213297647,12.48605054,241.62,241.55,12.37800734]
[1738213298345,12.37800734,241.58,241.5,12.37800734]
[1738213299031,12.37800734,241.57,241.5,12.37800734]
[1738213299232,12.37800734,241.55,241.49,0.063]
[1738213299735,12.37800734,241.54,241.49,0.063]
[1738213299935,0.12549,241.53,241.49,0.063]
[1738213300234,12.37800734,241.53,241.49,0.063]
[1738213300438,12.37800734,241.55,241.49,0.063]
[1738213300617,12.37800734,241.54,241.49,0.063]
[1738213301143,12.37800734,241.51,241.49,0.063]
[1738213301935,12.37800734,241.5,241.49,0.063]
[1738213302833,12.75447734,241.5,241.49,0.063]
[1738213305828,12.37800734,241.52,241.49,0.063]
[1738213306038,89.6327,241.53,241.49,0.063]
[1738213306235,12.37800734,241.52,241.49,0.063]
[1738213309436,12.50349734,241.51,241.49,0.063]
[1738213309623,12.37800734,241.5,241.49,0.063]
[1738213310341,12.50349734,241.5,241.49,0.063]
[1738213310940,12.75447734,241.5,241.49,0.063]
[1738213311629,12.87996734,241.5,241.49,0.063]
[1738213313942,36.65685134,241.5,241.49,0.063]
[1738213315623,36.74736902,241.5,241.49,0.063]
[1738213318652,20.50196,241.46,241.34,12.37800734]
[1738213318835,0.37647,241.39,241.33,0.063]
[1738213319036,83.0,241.38,241.33,12.44100734]
[1738213320648,83.0,241.38,241.33,0.063]
[1738213321447,95.75447734,241.37,241.33,0.063]
[1738213321752,12.87996734,241.34,241.33,0.063]
[1738213323562,12.75447734,241.34,241.33,0.063]
[1738213324355,0.37647,241.34,241.33,0.063]
[1738213324652,12.37800734,241.39,241.33,0.063]
[1738213324830,12.37800734,241.4,241.33,12.44100734]
[1738213325347,1.65116594,241.46,241.39,12.37800734]
[1738213325348,12.37800734,241.46,241.39,12.37800734]
[1738213325533,12.37800734,241.48,241.4,12.37800734]
[1738213325735,0.12549,241.45,241.4,12.37800734]
[1738213326235,0.12549,241.45,241.39,12.37800734]
[1738213326433,0.12549,241.45,241.4,12.37800734]
[1738213326642,12.37800734,241.48,241.4,12.37800734]
[1738213327243,0.12549,241.47,241.4,12.37800734]
[1738213327949,0.12549,241.47,241.41,12.37800734]